[Event "Titled Tuesday Blitz May 17 Late 2022"]
[White "Kamsky, Gata"]
[Black "Mikhailov, Viacheslav"]
[WhiteFideId "2000024"]
[BlackFideId "4187369"]
[WhiteElo "2645"]
[BlackElo "2381"]
[Result "1-0"]
[Round "11"]
[TimeControl "180+1"]
[Date "2022.05.17"]
[WhiteClock "0:00:33"]
[BlackClock "0:00:01"]

1. d4 {[%clk 0:03:00]}  Nf6 {[%clk 0:03:00]} 2. Nf3 {[%clk 0:02:51]}  g6 {[%clk 0:03:00]} 3. c4 {[%clk 0:02:51]}  Bg7 {[%clk 0:03:00]} 4. Nc3 {[%clk 0:02:51]}  O-O {[%clk 0:03:00]} 5. h4 {[%clk 0:02:51]}  d5 {[%clk 0:03:00]} 6. cxd5 {[%clk 0:02:49]}  Nxd5 {[%clk 0:03:01]} 7. h5 {[%clk 0:02:48]}  c5 {[%clk 0:03:01]} 8. hxg6 {[%clk 0:02:40]}  hxg6 {[%clk 0:03:02]} 9. Bh6 {[%clk 0:02:39]}  Nxc3 {[%clk 0:02:39]} 10. bxc3 {[%clk 0:02:38]}  Bxh6 {[%clk 0:02:38]} 11. Rxh6 {[%clk 0:02:37]}  Kg7 {[%clk 0:02:17]} 12. Rh4 {[%clk 0:02:36]}  Rh8 {[%clk 0:01:48]} 13. Rxh8 {[%clk 0:02:26]}  Qxh8 {[%clk 0:01:48]} 14. e3 {[%clk 0:02:06]}  Nc6 {[%clk 0:01:43]} 15. d5 {[%clk 0:02:05]}  Na5 {[%clk 0:01:39]} 16. Qa4 {[%clk 0:02:00]}  b6 {[%clk 0:01:26]} 17. Qf4 {[%clk 0:01:56]}  Kg8 {[%clk 0:01:19]} 18. Ne5 {[%clk 0:01:31]}  Qg7 {[%clk 0:01:04]} 19. Rc1 {[%clk 0:01:16]}  Bb7 {[%clk 0:00:54]} 20. c4 {[%clk 0:01:08]}  Rd8 {[%clk 0:00:49]} 21. Be2 {[%clk 0:01:06]}  Rd6 {[%clk 0:00:38]} 22. e4 {[%clk 0:00:59]}  Rf6 {[%clk 0:00:32]} 23. Qg5 {[%clk 0:00:53]}  Qh8 {[%clk 0:00:22]} 24. Ng4 {[%clk 0:00:51]}  Bc8 {[%clk 0:00:04]} 25. Nxf6+ {[%clk 0:00:50]}  exf6 {[%clk 0:00:05]} 26. Qf4 {[%clk 0:00:47]}  f5 {[%clk 0:00:04]} 27. Qb8 {[%clk 0:00:43]}  Kh7 {[%clk 0:00:03]} 28. e5 {[%clk 0:00:40]}  f4 {[%clk 0:00:01]} 29. Kd2 {[%clk 0:00:39]}  Kg7 {[%clk 0:00:01]} 30. Bf3 {[%clk 0:00:33]} 1-0


[Site "https://www.chess.com"]

[Event "Titled Tuesday Blitz May 17 Late 2022"]
[White "Mekhitarian, Krikor Sevag"]
[Black "Kavyev, Ruslan"]
[WhiteFideId "2107660"]
[BlackFideId "34110981"]
[WhiteElo "2598"]
[BlackElo "2180"]
[Result "1-0"]
[Round "11"]
[TimeControl "180+1"]
[Date "2022.05.17"]
[WhiteClock "0:00:02"]
[BlackClock "0:00:01"]

1. d4 {[%clk 0:02:59]}  Nf6 {[%clk 0:02:59]} 2. Nf3 {[%clk 0:02:58]}  g6 {[%clk 0:02:59]} 3. Bg5 {[%clk 0:02:58]}  Bg7 {[%clk 0:03:00]} 4. Nbd2 {[%clk 0:02:58]}  O-O {[%clk 0:03:00]} 5. c3 {[%clk 0:02:58]}  d6 {[%clk 0:03:01]} 6. e4 {[%clk 0:02:58]}  c5 {[%clk 0:03:01]} 7. dxc5 {[%clk 0:02:59]}  dxc5 {[%clk 0:03:01]} 8. Bc4 {[%clk 0:02:59]}  Qc7 {[%clk 0:03:00]} 9. O-O {[%clk 0:02:59]}  Nh5 {[%clk 0:03:01]} 10. a4 {[%clk 0:02:54]}  Nc6 {[%clk 0:02:59]} 11. Re1 {[%clk 0:02:54]}  h6 {[%clk 0:02:57]} 12. Bh4 {[%clk 0:02:54]}  g5 {[%clk 0:02:57]} 13. Bg3 {[%clk 0:02:49]}  Nxg3 {[%clk 0:02:55]} 14. hxg3 {[%clk 0:02:50]}  Bg4 {[%clk 0:02:49]} 15. Nf1 {[%clk 0:02:48]}  e6 {[%clk 0:02:48]} 16. Ne3 {[%clk 0:02:48]}  Bh5 {[%clk 0:02:48]} 17. Qc2 {[%clk 0:02:46]}  Bg6 {[%clk 0:02:43]} 18. Nf1 {[%clk 0:02:39]}  Rad8 {[%clk 0:02:40]} 19. Rad1 {[%clk 0:02:38]}  Kh8 {[%clk 0:02:32]} 20. N1h2 {[%clk 0:02:34]}  b6 {[%clk 0:02:28]} 21. Bb5 {[%clk 0:02:33]}  Ne5 {[%clk 0:02:22]} 22. Nxe5 {[%clk 0:02:32]}  Qxe5 {[%clk 0:02:21]} 23. Ng4 {[%clk 0:02:31]}  Qc7 {[%clk 0:02:13]} 24. Rxd8 {[%clk 0:02:28]}  Rxd8 {[%clk 0:02:11]} 25. Ne3 {[%clk 0:02:27]}  Qb7 {[%clk 0:02:05]} 26. f3 {[%clk 0:02:26]}  Qc7 {[%clk 0:02:01]} 27. Kf2 {[%clk 0:02:26]}  Be5 {[%clk 0:02:01]} 28. Nf1 {[%clk 0:02:27]}  c4 {[%clk 0:01:57]} 29. Rd1 {[%clk 0:02:25]}  Qc5+ {[%clk 0:01:54]} 30. Ke1 {[%clk 0:02:24]}  Rxd1+ {[%clk 0:01:49]} 31. Qxd1 {[%clk 0:02:25]}  Qg1 {[%clk 0:01:48]} 32. Qe2 {[%clk 0:02:18]}  Bxg3+ {[%clk 0:01:48]} 33. Kd1 {[%clk 0:02:19]}  Bf4 {[%clk 0:01:41]} 34. Bxc4 {[%clk 0:02:18]}  Kg7 {[%clk 0:01:27]} 35. Kc2 {[%clk 0:02:18]}  h5 {[%clk 0:01:25]} 36. b4 {[%clk 0:02:17]}  h4 {[%clk 0:01:25]} 37. Bd3 {[%clk 0:02:04]}  Qh1 {[%clk 0:01:13]} 38. Qf2 {[%clk 0:01:54]}  h3 {[%clk 0:01:10]} 39. gxh3 {[%clk 0:01:42]}  Bh5 {[%clk 0:01:02]} 40. Be2 {[%clk 0:01:37]}  Qxh3 {[%clk 0:01:01]} 41. a5 {[%clk 0:01:38]}  Qh1 {[%clk 0:00:55]} 42. axb6 {[%clk 0:01:23]}  axb6 {[%clk 0:00:55]} 43. Ng3 {[%clk 0:01:23]}  Bxg3 {[%clk 0:00:49]} 44. Qxg3 {[%clk 0:01:24]}  Qh4 {[%clk 0:00:42]} 45. Qg1 {[%clk 0:01:19]}  Qf4 {[%clk 0:00:35]} 46. b5 {[%clk 0:01:19]}  Kg6 {[%clk 0:00:19]} 47. Qxb6 {[%clk 0:01:10]}  Bxf3 {[%clk 0:00:17]} 48. Bxf3 {[%clk 0:01:11]}  Qxf3 {[%clk 0:00:17]} 49. Qc6 {[%clk 0:00:51]}  Qe2+ {[%clk 0:00:17]} 50. Kb3 {[%clk 0:00:50]}  g4 {[%clk 0:00:18]} 51. b6 {[%clk 0:00:50]}  Qd1+ {[%clk 0:00:18]} 52. Kc4 {[%clk 0:00:45]}  g3 {[%clk 0:00:18]} 53. b7 {[%clk 0:00:45]}  Qe2+ {[%clk 0:00:17]} 54. Kc5 {[%clk 0:00:43]}  Qb2 {[%clk 0:00:17]} 55. Qb5 {[%clk 0:00:28]}  Qxc3+ {[%clk 0:00:17]} 56. Kd6 {[%clk 0:00:23]}  Qd4+ {[%clk 0:00:16]} 57. Ke7 {[%clk 0:00:23]}  g2 {[%clk 0:00:14]} 58. b8=Q {[%clk 0:00:21]}  g1=Q {[%clk 0:00:14]} 59. Qg8+ {[%clk 0:00:14]}  Qg7 {[%clk 0:00:13]} 60. Qxg7+ {[%clk 0:00:09]}  Kxg7 {[%clk 0:00:14]} 61. Qe5+ {[%clk 0:00:10]}  Kg8 {[%clk 0:00:08]} 62. Qb8+ {[%clk 0:00:10]}  Kh7 {[%clk 0:00:08]} 63. Qf4 {[%clk 0:00:05]}  Kh8 {[%clk 0:00:01]} 64. Qf6+ {[%clk 0:00:03]}  Kg8 {[%clk 0:00:01]} 65. Qxf7+ {[%clk 0:00:04]}  Kh8 {[%clk 0:00:02]} 66. Qxe6 {[%clk 0:00:03]}  Qa7+ {[%clk 0:00:02]} 67. Kf6 {[%clk 0:00:03]}  Qg7+ {[%clk 0:00:01]} 68. Kf5 {[%clk 0:00:03]}  Kh7 {[%clk 0:00:01]} 69. Kf4 {[%clk 0:00:02]} 1-0


[Site "https://www.chess.com"]

[Event "Titled Tuesday Blitz May 17 Late 2022"]
[White "Mickiewicz, Piotr"]
[Black "Martinez Reyes, Pedro Ramon"]
[WhiteFideId "1114891"]
[BlackFideId "3901807"]
[WhiteElo "2223"]
[BlackElo "2410"]
[Result "1-0"]
[Round "11"]
[TimeControl "180+1"]
[Date "2022.05.17"]
[WhiteClock "0:00:09"]
[BlackClock "0:00:25"]

1. Nf3 {[%clk 0:03:00]}  c6 {[%clk 0:02:59]} 2. b3 {[%clk 0:03:00]}  d5 {[%clk 0:03:00]} 3. Bb2 {[%clk 0:03:00]}  Nf6 {[%clk 0:03:00]} 4. c4 {[%clk 0:02:56]}  g6 {[%clk 0:02:59]} 5. g3 {[%clk 0:02:55]}  Bg7 {[%clk 0:02:59]} 6. Bg2 {[%clk 0:02:56]}  O-O {[%clk 0:02:59]} 7. O-O {[%clk 0:02:56]}  a5 {[%clk 0:02:58]} 8. d3 {[%clk 0:02:53]}  Na6 {[%clk 0:02:58]} 9. Nbd2 {[%clk 0:02:51]}  Nc5 {[%clk 0:02:54]} 10. a3 {[%clk 0:02:50]}  dxc4 {[%clk 0:02:34]} 11. bxc4 {[%clk 0:02:48]}  Re8 {[%clk 0:02:26]} 12. Qc2 {[%clk 0:02:46]}  Bf5 {[%clk 0:02:26]} 13. Rab1 {[%clk 0:02:42]}  Nxd3 {[%clk 0:02:25]} 14. exd3 {[%clk 0:02:16]}  Bxd3 {[%clk 0:02:26]} 15. Qb3 {[%clk 0:02:12]}  Bxf1 {[%clk 0:02:05]} 16. Bxf1 {[%clk 0:02:03]}  Bh6 {[%clk 0:01:55]} 17. Bc3 {[%clk 0:02:01]}  Ra7 {[%clk 0:01:33]} 18. Bd4 {[%clk 0:01:55]}  Ra8 {[%clk 0:01:32]} 19. Bc3 {[%clk 0:01:45]}  Ra7 {[%clk 0:01:32]} 20. a4 {[%clk 0:01:39]}  Nd7 {[%clk 0:01:29]} 21. Bd4 {[%clk 0:01:38]}  c5 {[%clk 0:01:29]} 22. Be3 {[%clk 0:01:37]}  Bxe3 {[%clk 0:01:29]} 23. Qxe3 {[%clk 0:01:38]}  Qc7 {[%clk 0:01:26]} 24. Ne4 {[%clk 0:01:32]}  Raa8 {[%clk 0:01:24]} 25. Nc3 {[%clk 0:01:30]}  e6 {[%clk 0:01:16]} 26. Bg2 {[%clk 0:01:29]}  Rad8 {[%clk 0:01:15]} 27. Ng5 {[%clk 0:01:24]}  b6 {[%clk 0:01:13]} 28. Nge4 {[%clk 0:01:20]}  Kg7 {[%clk 0:01:07]} 29. f4 {[%clk 0:01:15]}  Nf6 {[%clk 0:01:03]} 30. Nb5 {[%clk 0:01:11]}  Qe7 {[%clk 0:01:01]} 31. Qc3 {[%clk 0:01:07]}  Rd7 {[%clk 0:00:59]} 32. Qe5 {[%clk 0:00:58]}  Red8 {[%clk 0:00:58]} 33. g4 {[%clk 0:00:50]}  Rd1+ {[%clk 0:00:58]} 34. Rxd1 {[%clk 0:00:49]}  Rxd1+ {[%clk 0:00:59]} 35. Bf1 {[%clk 0:00:46]}  Qd8 {[%clk 0:00:39]} 36. Nbd6 {[%clk 0:00:26]}  Kf8 {[%clk 0:00:26]} 37. Nxf6 {[%clk 0:00:08]}  Qxd6 {[%clk 0:00:25]} 38. Nxh7+ {[%clk 0:00:07]}  Ke8 {[%clk 0:00:25]} 39. Nf6+ {[%clk 0:00:07]}  Ke7 {[%clk 0:00:24]} 40. Qxd6+ {[%clk 0:00:05]}  Kxd6 {[%clk 0:00:22]} 41. g5 {[%clk 0:00:06]}  Rd4 {[%clk 0:00:20]} 42. Kg2 {[%clk 0:00:04]}  Rxf4 {[%clk 0:00:21]} 43. Be2 {[%clk 0:00:02]}  Rd4 {[%clk 0:00:20]} 44. h4 {[%clk 0:00:02]}  Rxh4 {[%clk 0:00:20]} 45. Kg3 {[%clk 0:00:03]}  Rd4 {[%clk 0:00:20]} 46. Kf3 {[%clk 0:00:02]}  Rd2 {[%clk 0:00:20]} 47. Ke3 {[%clk 0:00:02]}  Ra2 {[%clk 0:00:20]} 48. Ne4+ {[%clk 0:00:03]}  Ke5 {[%clk 0:00:20]} 49. Nc3 {[%clk 0:00:04]}  Ra3 {[%clk 0:00:20]} 50. Kd2 {[%clk 0:00:04]}  Kd4 {[%clk 0:00:20]} 51. Nb5+ {[%clk 0:00:03]}  Ke5 {[%clk 0:00:21]} 52. Nxa3 {[%clk 0:00:04]}  Kf4 {[%clk 0:00:21]} 53. Kd3 {[%clk 0:00:04]}  Kxg5 {[%clk 0:00:22]} 54. Nb5 {[%clk 0:00:03]}  Kf4 {[%clk 0:00:22]} 55. Nd6 {[%clk 0:00:04]}  e5 {[%clk 0:00:22]} 56. Nc8 {[%clk 0:00:04]}  e4+ {[%clk 0:00:22]} 57. Kd2 {[%clk 0:00:04]}  g5 {[%clk 0:00:22]} 58. Nxb6 {[%clk 0:00:04]}  g4 {[%clk 0:00:23]} 59. Nd5+ {[%clk 0:00:04]}  Ke5 {[%clk 0:00:21]} 60. Bxg4 {[%clk 0:00:03]}  f5 {[%clk 0:00:21]} 61. Bxf5 {[%clk 0:00:03]}  Kxf5 {[%clk 0:00:21]} 62. Ke3 {[%clk 0:00:04]}  Ke5 {[%clk 0:00:22]} 63. Nc3 {[%clk 0:00:05]}  Kd6 {[%clk 0:00:22]} 64. Nxe4+ {[%clk 0:00:06]}  Kc6 {[%clk 0:00:22]} 65. Kf4 {[%clk 0:00:06]}  Kb6 {[%clk 0:00:23]} 66. Ke5 {[%clk 0:00:07]}  Kc6 {[%clk 0:00:24]} 67. Ke6 {[%clk 0:00:07]}  Kb6 {[%clk 0:00:24]} 68. Kd5 {[%clk 0:00:08]}  Ka7 {[%clk 0:00:25]} 69. Nxc5 {[%clk 0:00:09]} 1-0


[Site "https://www.chess.com"]

[Event "Titled Tuesday Blitz May 17 Late 2022"]
[White "Paravyan, David"]
[Black "Zakhartsov, Vladimir"]
[WhiteFideId "4194985"]
[BlackFideId "4145097"]
[WhiteElo "2569"]
[BlackElo "2428"]
[Result "0-1"]
[Round "11"]
[TimeControl "180+1"]
[Date "2022.05.17"]
[WhiteClock "0:00:03"]
[BlackClock "0:00:23"]

1. e4 {[%clk 0:03:00]}  c6 {[%clk 0:02:49]} 2. d4 {[%clk 0:03:00]}  d5 {[%clk 0:02:49]} 3. e5 {[%clk 0:03:00]}  Bf5 {[%clk 0:02:49]} 4. Nf3 {[%clk 0:03:01]}  e6 {[%clk 0:02:49]} 5. Be2 {[%clk 0:03:01]}  c5 {[%clk 0:02:50]} 6. Be3 {[%clk 0:03:00]}  Qb6 {[%clk 0:02:49]} 7. Nc3 {[%clk 0:02:57]}  Nc6 {[%clk 0:02:49]} 8. O-O {[%clk 0:02:57]}  Qxb2 {[%clk 0:02:49]} 9. Qe1 {[%clk 0:02:57]}  c4 {[%clk 0:02:49]} 10. Rb1 {[%clk 0:02:47]}  Qa3 {[%clk 0:02:49]} 11. Nb5 {[%clk 0:02:43]}  Qa4 {[%clk 0:02:49]} 12. Nc7+ {[%clk 0:02:42]}  Kd7 {[%clk 0:02:49]} 13. Nxa8 {[%clk 0:02:43]}  Kc8 {[%clk 0:02:50]} 14. Ng5 {[%clk 0:02:41]}  Nh6 {[%clk 0:02:48]} 15. Bh5 {[%clk 0:02:29]}  g6 {[%clk 0:02:41]} 16. Bf3 {[%clk 0:02:12]}  Bxc2 {[%clk 0:02:30]} 17. Rb2 {[%clk 0:02:09]}  Kb8 {[%clk 0:02:26]} 18. Qd2 {[%clk 0:01:39]}  Bd3 {[%clk 0:02:18]} 19. Ra1 {[%clk 0:01:26]}  Ba3 {[%clk 0:02:06]} 20. Bd1 {[%clk 0:00:57]}  Qa6 {[%clk 0:01:50]} 21. Nxe6 {[%clk 0:00:50]}  fxe6 {[%clk 0:01:51]} 22. Bxh6 {[%clk 0:00:51]}  Nxd4 {[%clk 0:01:35]} 23. Bg4 {[%clk 0:00:15]}  Rc8 {[%clk 0:01:24]} 24. Qc3 {[%clk 0:00:11]}  Bxb2 {[%clk 0:01:22]} 25. Qxb2 {[%clk 0:00:12]}  Nf5 {[%clk 0:01:16]} 26. Bd2 {[%clk 0:00:11]}  Kxa8 {[%clk 0:01:00]} 27. Bc3 {[%clk 0:00:05]}  Qb6 {[%clk 0:00:50]} 28. Qa3 {[%clk 0:00:04]}  d4 {[%clk 0:00:48]} 29. Bb4 {[%clk 0:00:04]}  c3 {[%clk 0:00:46]} 30. h3 {[%clk 0:00:04]}  Be4 {[%clk 0:00:41]} 31. Re1 {[%clk 0:00:04]}  Bd5 {[%clk 0:00:37]} 32. Be2 {[%clk 0:00:04]}  Qc6 {[%clk 0:00:32]} 33. Bf1 {[%clk 0:00:02]}  Nh4 {[%clk 0:00:30]} 34. Bd6 {[%clk 0:00:01]}  Bxg2 {[%clk 0:00:28]} 35. Be2 {[%clk 0:00:01]}  Bxh3 {[%clk 0:00:23]} 36. f3 {[%clk 0:00:01]}  Nxf3+ {[%clk 0:00:23]} 37. Kf2 {[%clk 0:00:02]}  Nxe1 {[%clk 0:00:23]} 38. Kxe1 {[%clk 0:00:02]}  c2 {[%clk 0:00:23]} 39. Qc1 {[%clk 0:00:02]}  Qe4 {[%clk 0:00:22]} 40. Kd2 {[%clk 0:00:03]}  Qe3+ {[%clk 0:00:22]} 41. Ke1 {[%clk 0:00:03]}  Qxc1+ {[%clk 0:00:23]} 0-1


[Site "https://www.chess.com"]

[Event "Titled Tuesday Blitz May 17 Late 2022"]
[White "Pichot, Alan"]
[Black "Keymer, Vincent"]
[WhiteFideId "110973"]
[BlackFideId "12940690"]
[WhiteElo "2579"]
[BlackElo "2548"]
[Result "0-1"]
[Round "11"]
[TimeControl "180+1"]
[Date "2022.05.17"]
[WhiteClock "0:00:07"]
[BlackClock "0:00:10"]

1. e4 {[%clk 0:02:59]}  c6 {[%clk 0:03:00]} 2. d3 {[%clk 0:02:57]}  d5 {[%clk 0:03:01]} 3. Nd2 {[%clk 0:02:58]}  e5 {[%clk 0:03:01]} 4. g3 {[%clk 0:02:57]}  Bd6 {[%clk 0:03:01]} 5. Bg2 {[%clk 0:02:57]}  Nf6 {[%clk 0:03:02]} 6. Ngf3 {[%clk 0:02:58]}  O-O {[%clk 0:03:02]} 7. O-O {[%clk 0:02:58]}  Re8 {[%clk 0:03:03]} 8. Re1 {[%clk 0:02:58]}  Nbd7 {[%clk 0:03:04]} 9. b3 {[%clk 0:02:53]}  a5 {[%clk 0:03:03]} 10. a3 {[%clk 0:02:53]}  Nf8 {[%clk 0:03:03]} 11. Bb2 {[%clk 0:02:53]}  Ng6 {[%clk 0:03:04]} 12. h3 {[%clk 0:02:53]}  h6 {[%clk 0:03:04]} 13. c3 {[%clk 0:02:52]}  Bd7 {[%clk 0:02:54]} 14. Qc2 {[%clk 0:02:51]}  Qc7 {[%clk 0:02:49]} 15. b4 {[%clk 0:02:49]}  Be6 {[%clk 0:02:36]} 16. c4 {[%clk 0:02:46]}  d4 {[%clk 0:02:30]} 17. c5 {[%clk 0:02:41]}  Bf8 {[%clk 0:02:31]} 18. Nc4 {[%clk 0:02:42]}  Nd7 {[%clk 0:02:31]} 19. Reb1 {[%clk 0:02:36]}  axb4 {[%clk 0:02:29]} 20. axb4 {[%clk 0:02:36]}  b6 {[%clk 0:02:25]} 21. cxb6 {[%clk 0:02:30]}  Nxb6 {[%clk 0:02:26]} 22. Na5 {[%clk 0:02:30]}  Rec8 {[%clk 0:02:17]} 23. Bc1 {[%clk 0:02:18]}  c5 {[%clk 0:02:01]} 24. bxc5 {[%clk 0:02:11]}  Nd7 {[%clk 0:01:47]} 25. Nc4 {[%clk 0:01:54]}  Rxa1 {[%clk 0:01:44]} 26. Rxa1 {[%clk 0:01:54]}  Nxc5 {[%clk 0:01:44]} 27. Nfd2 {[%clk 0:01:43]}  Nxd3 {[%clk 0:01:27]} 28. Qxd3 {[%clk 0:01:44]}  Bxc4 {[%clk 0:01:27]} 29. Nxc4 {[%clk 0:01:41]}  Qxc4 {[%clk 0:01:28]} 30. Qxc4 {[%clk 0:01:42]}  Rxc4 {[%clk 0:01:29]} 31. Bd2 {[%clk 0:01:43]}  Rc2 {[%clk 0:01:24]} 32. Be1 {[%clk 0:01:42]}  Rb2 {[%clk 0:01:22]} 33. Bf1 {[%clk 0:01:42]}  Bb4 {[%clk 0:01:21]} 34. Ra8+ {[%clk 0:01:33]}  Nf8 {[%clk 0:01:19]} 35. Bxb4 {[%clk 0:01:21]}  Rxb4 {[%clk 0:01:18]} 36. Re8 {[%clk 0:01:22]}  f6 {[%clk 0:01:13]} 37. Rc8 {[%clk 0:01:21]}  Kf7 {[%clk 0:01:08]} 38. Rc7+ {[%clk 0:01:21]}  Kg6 {[%clk 0:01:05]} 39. Bc4 {[%clk 0:01:21]}  h5 {[%clk 0:01:04]} 40. Bf7+ {[%clk 0:01:19]}  Kh6 {[%clk 0:00:56]} 41. Rc8 {[%clk 0:01:19]}  g6 {[%clk 0:00:46]} 42. Bd5 {[%clk 0:01:10]}  Nh7 {[%clk 0:00:41]} 43. Kf1 {[%clk 0:01:05]}  h4 {[%clk 0:00:41]} 44. gxh4 {[%clk 0:01:05]}  Ra4 {[%clk 0:00:39]} 45. Rc7 {[%clk 0:01:04]}  Ra1+ {[%clk 0:00:35]} 46. Ke2 {[%clk 0:01:02]}  Ra3 {[%clk 0:00:29]} 47. Bg8 {[%clk 0:01:01]}  Nf8 {[%clk 0:00:29]} 48. Rf7 {[%clk 0:00:59]}  Ra8 {[%clk 0:00:29]} 49. Kf3 {[%clk 0:00:59]}  Rd8 {[%clk 0:00:24]} 50. Ke2 {[%clk 0:00:55]}  Kh5 {[%clk 0:00:19]} 51. Rxf6 {[%clk 0:00:55]}  Kxh4 {[%clk 0:00:19]} 52. Rf3 {[%clk 0:00:48]}  Kg5 {[%clk 0:00:19]} 53. Bf7 {[%clk 0:00:46]}  Rb8 {[%clk 0:00:17]} 54. Kf1 {[%clk 0:00:43]}  Rb1+ {[%clk 0:00:17]} 55. Kg2 {[%clk 0:00:44]}  Rb8 {[%clk 0:00:17]} 56. Kg3 {[%clk 0:00:41]}  Kh6 {[%clk 0:00:17]} 57. Kg4 {[%clk 0:00:40]}  Nh7 {[%clk 0:00:14]} 58. Bd5 {[%clk 0:00:35]}  Rb6 {[%clk 0:00:13]} 59. Rf7 {[%clk 0:00:21]}  Nf6+ {[%clk 0:00:14]} 60. Kf3 {[%clk 0:00:22]}  Kg5 {[%clk 0:00:14]} 61. Ba8 {[%clk 0:00:18]}  Ra6 {[%clk 0:00:12]} 62. Bb7 {[%clk 0:00:17]}  Ra3+ {[%clk 0:00:10]} 63. Ke2 {[%clk 0:00:17]}  Nh5 {[%clk 0:00:11]} 64. Re7 {[%clk 0:00:13]}  Kf6 {[%clk 0:00:10]} 65. Re8 {[%clk 0:00:12]}  Nf4+ {[%clk 0:00:10]} 66. Kd2 {[%clk 0:00:13]}  Rd3+ {[%clk 0:00:10]} 67. Kc2 {[%clk 0:00:14]}  Rxh3 {[%clk 0:00:11]} 68. Kd2 {[%clk 0:00:07]}  Rd3+ {[%clk 0:00:11]} 69. Ke1 {[%clk 0:00:07]}  Ra3 {[%clk 0:00:12]} 70. Bc8 {[%clk 0:00:07]}  Ra1+ {[%clk 0:00:12]} 71. Kd2 {[%clk 0:00:07]}  Ra2+ {[%clk 0:00:12]} 72. Ke1 {[%clk 0:00:07]}  d3 {[%clk 0:00:13]} 73. Rd8 {[%clk 0:00:07]}  Re2+ {[%clk 0:00:12]} 74. Kf1 {[%clk 0:00:07]}  d2 {[%clk 0:00:10]} 0-1


[Site "https://www.chess.com"]

[Event "Titled Tuesday Blitz May 17 Late 2022"]
[White "Rychagov, Andrey"]
[Black "Vovk, Orest"]
[WhiteFideId "4119932"]
[BlackFideId "14113490"]
[WhiteElo "2500"]
[BlackElo "2203"]
[Result "0-1"]
[Round "11"]
[TimeControl "180+1"]
[Date "2022.05.17"]
[WhiteClock "0:00:15"]
[BlackClock "0:00:06"]

1. d4 {[%clk 0:02:56]}  e5 {[%clk 0:02:59]} 2. dxe5 {[%clk 0:02:55]}  Nc6 {[%clk 0:02:59]} 3. Bf4 {[%clk 0:02:53]}  Qe7 {[%clk 0:02:59]} 4. Nf3 {[%clk 0:02:49]}  Qb4+ {[%clk 0:02:59]} 5. Bd2 {[%clk 0:02:49]}  Qxb2 {[%clk 0:02:59]} 6. Nc3 {[%clk 0:02:50]}  Bb4 {[%clk 0:02:59]} 7. Rb1 {[%clk 0:02:44]}  Qxc3 {[%clk 0:02:59]} 8. Rxb4 {[%clk 0:02:40]}  Qc5 {[%clk 0:02:57]} 9. Rb3 {[%clk 0:02:32]}  Nge7 {[%clk 0:02:52]} 10. e3 {[%clk 0:02:28]}  Nxe5 {[%clk 0:02:48]} 11. Rb5 {[%clk 0:02:21]}  Nxf3+ {[%clk 0:02:43]} 12. gxf3 {[%clk 0:02:21]}  Qc6 {[%clk 0:02:38]} 13. Bd3 {[%clk 0:02:20]}  a6 {[%clk 0:02:33]} 14. Rg5 {[%clk 0:02:18]}  O-O {[%clk 0:02:13]} 15. Rhg1 {[%clk 0:02:14]}  g6 {[%clk 0:02:13]} 16. h4 {[%clk 0:02:11]}  d5 {[%clk 0:02:08]} 17. h5 {[%clk 0:02:06]}  Qf6 {[%clk 0:02:00]} 18. Bb4 {[%clk 0:01:59]}  c5 {[%clk 0:01:53]} 19. hxg6 {[%clk 0:01:42]}  fxg6 {[%clk 0:01:44]} 20. Bd2 {[%clk 0:01:33]}  Qxf3 {[%clk 0:01:37]} 21. Qxf3 {[%clk 0:01:27]}  Rxf3 {[%clk 0:01:38]} 22. Re5 {[%clk 0:01:24]}  Kf7 {[%clk 0:01:28]} 23. e4 {[%clk 0:01:22]}  Be6 {[%clk 0:01:08]} 24. Ke2 {[%clk 0:01:13]}  Rh3 {[%clk 0:00:58]} 25. exd5 {[%clk 0:01:03]}  Nxd5 {[%clk 0:00:55]} 26. Be4 {[%clk 0:01:03]}  Nc3+ {[%clk 0:00:44]} 27. Bxc3 {[%clk 0:00:59]}  Rxc3 {[%clk 0:00:45]} 28. Kd2 {[%clk 0:00:53]}  Rh3 {[%clk 0:00:29]} 29. Rxc5 {[%clk 0:00:52]}  Rd8+ {[%clk 0:00:26]} 30. Bd3 {[%clk 0:00:50]}  Rd7 {[%clk 0:00:20]} 31. a4 {[%clk 0:00:37]}  Bf5 {[%clk 0:00:18]} 32. Rg3 {[%clk 0:00:37]}  Rxg3 {[%clk 0:00:17]} 33. fxg3 {[%clk 0:00:37]}  Bxd3 {[%clk 0:00:17]} 34. cxd3 {[%clk 0:00:37]}  Kf6 {[%clk 0:00:16]} 35. Kc3 {[%clk 0:00:34]}  h5 {[%clk 0:00:15]} 36. d4 {[%clk 0:00:33]}  g5 {[%clk 0:00:15]} 37. Kc4 {[%clk 0:00:32]}  Rh7 {[%clk 0:00:13]} 38. Re5 {[%clk 0:00:19]}  h4 {[%clk 0:00:13]} 39. gxh4 {[%clk 0:00:20]}  gxh4 {[%clk 0:00:14]} 40. Re2 {[%clk 0:00:20]}  h3 {[%clk 0:00:14]} 41. Rh2 {[%clk 0:00:20]}  Kf5 {[%clk 0:00:13]} 42. d5 {[%clk 0:00:18]}  Kg4 {[%clk 0:00:10]} 43. d6 {[%clk 0:00:16]}  Kg3 {[%clk 0:00:09]} 44. Rh1 {[%clk 0:00:16]}  h2 {[%clk 0:00:10]} 45. Kd5 {[%clk 0:00:15]}  Kg2 {[%clk 0:00:09]} 46. Rxh2+ {[%clk 0:00:15]}  Kxh2 {[%clk 0:00:08]} 47. a5 {[%clk 0:00:15]}  Kg3 {[%clk 0:00:05]} 48. Ke6 {[%clk 0:00:15]}  Rh6+ {[%clk 0:00:05]} 49. Ke7 {[%clk 0:00:15]}  Kf4 {[%clk 0:00:04]} 50. d7 {[%clk 0:00:16]}  Ke5 {[%clk 0:00:03]} 51. d8=Q {[%clk 0:00:13]}  Rh7+ {[%clk 0:00:03]} 52. Ke8 {[%clk 0:00:14]}  Rh8+ {[%clk 0:00:04]} 53. Kd7 {[%clk 0:00:14]}  Rxd8+ {[%clk 0:00:05]} 54. Kxd8 {[%clk 0:00:14]}  Kd6 {[%clk 0:00:05]} 55. Kc8 {[%clk 0:00:14]}  Kc6 {[%clk 0:00:05]} 56. Kb8 {[%clk 0:00:15]}  b6 {[%clk 0:00:06]} 0-1


[Site "https://www.chess.com"]

[Event "Titled Tuesday Blitz May 17 Late 2022"]
[White "Suleymanli, Aydin"]
[Black "Svane, Rasmus"]
[WhiteFideId "13413937"]
[BlackFideId "4657101"]
[WhiteElo "2481"]
[BlackElo "2674"]
[Result "1-0"]
[Round "11"]
[TimeControl "180+1"]
[Date "2022.05.17"]
[WhiteClock "0:00:05"]
[BlackClock "0:00:08"]

1. d4 {[%clk 0:03:00]}  Nf6 {[%clk 0:02:59]} 2. Nc3 {[%clk 0:03:00]}  d5 {[%clk 0:02:59]} 3. Bf4 {[%clk 0:03:01]}  c5 {[%clk 0:02:59]} 4. e3 {[%clk 0:02:59]}  cxd4 {[%clk 0:02:58]} 5. exd4 {[%clk 0:02:56]}  a6 {[%clk 0:02:59]} 6. Nf3 {[%clk 0:02:53]}  Nc6 {[%clk 0:02:59]} 7. Ne5 {[%clk 0:02:51]}  Bd7 {[%clk 0:02:59]} 8. g4 {[%clk 0:02:35]}  e6 {[%clk 0:02:34]} 9. g5 {[%clk 0:02:31]}  Nxe5 {[%clk 0:02:32]} 10. Bxe5 {[%clk 0:02:29]}  Ne4 {[%clk 0:02:15]} 11. Nxe4 {[%clk 0:02:27]}  dxe4 {[%clk 0:02:16]} 12. Qg4 {[%clk 0:02:04]}  Qa5+ {[%clk 0:02:16]} 13. c3 {[%clk 0:02:03]}  Rc8 {[%clk 0:02:01]} 14. Bg2 {[%clk 0:01:10]}  Bb5 {[%clk 0:01:54]} 15. d5 {[%clk 0:01:04]}  Ba3 {[%clk 0:01:31]} 16. dxe6 {[%clk 0:00:39]}  Bxb2 {[%clk 0:01:30]} 17. exf7+ {[%clk 0:00:33]}  Kxf7 {[%clk 0:01:06]} 18. Qf5+ {[%clk 0:00:31]}  Ke7 {[%clk 0:01:06]} 19. Qxe4 {[%clk 0:00:31]}  Bc6 {[%clk 0:00:23]} 20. Bf6+ {[%clk 0:00:25]}  Kf7 {[%clk 0:00:18]} 21. Qe7+ {[%clk 0:00:25]}  Kg6 {[%clk 0:00:19]} 22. Qxg7+ {[%clk 0:00:25]}  Kf5 {[%clk 0:00:18]} 23. Bh3+ {[%clk 0:00:22]}  Kf4 {[%clk 0:00:18]} 24. O-O {[%clk 0:00:12]}  Qd5 {[%clk 0:00:17]} 25. f3 {[%clk 0:00:11]}  Bxa1 {[%clk 0:00:17]} 26. Qh6 {[%clk 0:00:08]}  Qc5+ {[%clk 0:00:12]} 27. Rf2 {[%clk 0:00:07]}  Ke3 {[%clk 0:00:07]} 28. g6+ {[%clk 0:00:06]}  Kd3 {[%clk 0:00:08]} 29. Bf1# {[%clk 0:00:05]} 1-0


[Site "https://www.chess.com"]